fUSD/lending_fUSD_20251025
["ID","MTS","AMOUNT","RATE_DAILY","PERIOD"]
[392336277,1761358254166,-500.0,0.0003863,30]
[392336278,1761358254175,-500.0,0.0003863,30]
[392336279,1761358254184,-500.0,0.0003863,30]
[392336280,1761358254193,-500.0,0.0003863,30]
[392336281,1761358254203,-830.83,0.0003863,30]
[392336282,1761358254211,-500.0,0.0003863,30]
[392336283,1761358254221,-300.0,0.0003863,2]
[392336284,1761358254230,-500.0,0.0003863,30]
[392336285,1761358254239,-500.0,0.0003863,30]
[392336286,1761358254248,-500.0,0.0003863,30]
[392336287,1761358254257,-1366.34,0.0003863,30]
[392336288,1761358254267,-642.34,0.0003863,30]
[392336289,1761358254275,-2417.41,0.0003863,2]
[392336290,1761358254284,-500.0,0.0003863,7]
[392336291,1761358254293,-500.0,0.0003863,30]
[392336292,1761358254302,-500.0,0.0003863,30]
[392336293,1761358254311,-563.20836654,0.0003863,30]
[392336294,1761358254320,-500.0,0.0003863,30]
[392336295,1761358254328,-500.0,0.0003863,30]
[392336296,1761358254337,-1685.35,0.0003863,30]
[392336297,1761358254346,-500.0,0.0003863,30]
[392336298,1761358254355,-512.6,0.0003863,30]
[392336299,1761358254364,-500.0,0.0003863,30]
[392336300,1761358254373,-500.0,0.0003863,30]
[392336301,1761358254382,-594.2851224,0.0003863,30]
[392336302,1761358254391,-500.0,0.0003863,30]
[392336303,1761358254400,-647.95,0.0003863,30]
[392336304,1761358254409,-500.0,0.0003863,30]
[392336305,1761358254418,-500.0,0.0003863,30]
[392336306,1761358254428,-500.0,0.0003863,30]
[392336307,1761358254437,-605.73,0.0003863,30]
[392336308,1761358254447,-500.0,0.0003863,30]
[392336309,1761358254457,-500.0,0.0003863,30]
[392336310,1761358254468,-500.0,0.0003863,30]
[392336311,1761358254480,-500.0,0.0003863,30]
[392336312,1761358254489,-500.0,0.0003863,30]
[392336313,1761358254498,-500.0,0.0003863,30]
[392336314,1761358254507,-500.0,0.0003863,30]
[392336315,1761358254517,-500.0,0.0003863,30]
[392336316,1761358254526,-563.77,0.0003863,30]
[392336317,1761358254535,-927.2,0.0003863,30]
[392336318,1761358254544,-500.0,0.0003863,30]
[392336319,1761358254553,-500.0,0.0003863,30]
[392336320,1761358254563,-583.3583454,0.0003863,30]
[392336321,1761358254572,-500.0,0.0003863,30]
[392336322,1761358254581,-330.15782464,0.0003863,30]
[392336323,1761358254590,-598.6,0.0003863,30]
[392336324,1761358254600,-500.0,0.0003863,30]
[392336325,1761358254609,-500.0,0.0003863,30]
[392336326,1761358254618,-500.0,0.0003863,30]
[392336327,1761358254627,-615.41,0.0003863,30]
[392336328,1761358254637,-500.0,0.0003863,30]
[392336329,1761358254645,-500.0,0.0003863,30]
[392336330,1761358254654,-500.0,0.0003863,30]
[392336331,1761358254663,-500.0,0.0003863,30]
[392336332,1761358254680,-500.0,0.0003863,30]
[392336333,1761358254688,-500.0,0.0003863,30]
[392336334,1761358254698,-500.0,0.0003863,30]
[392336335,1761358254707,-500.0,0.0003863,30]
[392336336,1761358254716,-500.0,0.0003863,30]
[392336337,1761358254725,-500.0,0.0003863,30]
[392336338,1761358254734,-500.0,0.0003863,30]
[392336339,1761358254744,-500.0,0.0003863,30]
[392336340,1761358254753,-500.0,0.0003863,30]
[392336341,1761358254762,-493.21806856,0.0003863,30]
[392336342,1761358254771,-271.34853315,0.0003863,30]
[392336343,1761358254780,-500.0,0.0003863,30]
[392336344,1761358254790,-500.0,0.0003863,30]
[392336345,1761358254798,-500.0,0.0003863,30]
[392336346,1761358254807,-500.0,0.0003863,30]
[392336347,1761358254816,-500.0,0.0003863,30]
[392336348,1761358254828,-429.48488977,0.0003863,30]
[392336349,1761358254837,-500.0,0.0003863,30]
[392336350,1761358254847,-500.0,0.0003863,30]
[392336351,1761358254856,-500.0,0.0003863,30]
[392336352,1761358254864,-500.0,0.0003863,30]
[392336353,1761358254874,-500.0,0.0003863,30]
[392336354,1761358254883,-500.0,0.0003863,30]
[392336355,1761358254891,-500.0,0.0003863,30]
[392336356,1761358254901,-567.3,0.0003863,30]
[392336357,1761358254910,-500.0,0.0003863,30]
[392336358,1761358254919,-500.0,0.0003863,30]
[392336359,1761358254928,-500.0,0.0003863,30]
[392336360,1761358254937,-501.66384493,0.0003863,30]
[392336361,1761358254947,-573.66,0.0003863,30]
[392336362,1761358254955,-500.0,0.0003863,30]
[392336363,1761358254964,-29723.32,0.0003863,30]
[392336364,1761358254973,-500.0,0.0003863,30]
[392336365,1761358254982,-500.0,0.0003863,30]
[392336366,1761358254991,-501.81866098,0.0003863,30]
[392336367,1761358255000,-500.0,0.0003863,30]
[392336368,1761358255009,-500.0,0.0003863,30]
[392336369,1761358255018,-500.0,0.0003863,30]
[392336370,1761358255027,-500.0,0.0003863,30]
[392336371,1761358255037,-300.0,0.0003863,2]
[392336372,1761358255046,-500.0,0.0003863,30]
[392336373,1761358255055,-895.42,0.0003863,30]
[392336374,1761358255066,-500.0,0.0003863,30]
[392336375,1761358255081,-500.0,0.0003863,30]
[392336376,1761358255090,-500.0,0.0003863,30]
[392336377,1761358255100,-500.0,0.0003863,30]
[392336378,1761358255109,-500.0,0.0003863,30]
[392336379,1761358255118,-500.0,0.0003863,30]
[392336380,1761358255127,-500.0,0.0003863,30]
[392336381,1761358255136,-500.0,0.0003863,30]
[392336382,1761358255145,-500.0,0.0003863,30]
[392336383,1761358255154,-564.83,0.0003863,30]
[392336384,1761358255163,-500.0,0.0003863,30]
[392336385,1761358255173,-1623.03,0.0003863,30]
[392336386,1761358255182,-500.0,0.0003863,30]
[392336387,1761358255192,-500.0,0.0003863,30]
[392336388,1761358255201,-500.0,0.0003863,30]
[392336389,1761358255211,-900.0,0.0003863,7]
[392336390,1761358255220,-500.0,0.0003863,30]
[392336391,1761358255229,-500.0,0.0003863,30]
[392336392,1761358255239,-521.62603923,0.0003863,30]
[392336393,1761358255249,-500.0,0.0003863,30]
[392336394,1761358255258,-500.0,0.0003863,30]
[392336395,1761358255267,-500.0,0.0003863,30]
[392336396,1761358255276,-500.0,0.0003863,30]
[392336397,1761358255287,-500.0,0.0003863,30]
[392336398,1761358255297,-500.0,0.0003863,30]
[392336399,1761358255307,-504.14,0.0003863,30]
[392336400,1761358255316,-500.0,0.0003863,30]
[392336401,1761358255326,-500.0,0.0003863,30]
[392336402,1761358255335,-483.66230228,0.0003863,30]
[392336403,1761358255344,-500.0,0.0003863,30]
[392336404,1761358255353,-500.0,0.0003863,30]
[392336405,1761358255362,-551.0763759,0.0003863,30]
[392336406,1761358255371,-671.64,0.0003863,30]
[392336407,1761358255380,-500.0,0.0003863,30]
[392336408,1761358255390,-500.0,0.0003863,30]
[392336409,1761358255399,-427.785191,0.0003863,30]
[392336410,1761358255407,-500.0,0.0003863,30]
[392336411,1761358255416,-500.0,0.0003863,30]
[392336412,1761358255425,-500.0,0.0003863,30]
[392336413,1761358255433,-526.9,0.0003863,30]
[392336414,1761358255442,-943.48,0.0003863,30]
[392336415,1761358255451,-500.0,0.0003863,30]
[392336416,1761358255461,-500.0,0.0003863,30]
[392336417,1761358255473,-655.77,0.0003863,30]
[392336418,1761358255483,-500.0,0.0003863,30]
[392336419,1761358255492,-514.72,0.0003863,30]
[392336420,1761358255502,-550.74,0.0003863,30]
[392336421,1761358255512,-500.0,0.0003863,30]
[392336422,1761358255521,-500.0,0.0003863,30]
[392336423,1761358255530,-518.96928287,0.0003863,30]
[392336424,1761358255538,-500.0,0.0003863,30]
[392336425,1761358255548,-500.0,0.0003863,30]
[392336426,1761358255561,-500.0,0.0003863,30]
[392336427,1761358255572,-500.0,0.0003863,30]
[392336428,1761358255581,-548.1,0.0003863,30]
[392336429,1761358255591,-500.0,0.0003863,30]
[392336430,1761358255600,-500.0,0.0003863,30]
[392336431,1761358255609,-500.0,0.0003863,30]
[392336432,1761358255618,-572.77,0.0003863,30]
[392336433,1761358255627,-500.0,0.0003863,30]
[392336434,1761358255636,-500.0,0.0003863,30]
[392336435,1761358255645,-500.0,0.0003863,30]
[392336436,1761358255654,-500.0,0.0003863,30]
[392336437,1761358255663,-500.0,0.0003863,30]
[392336438,1761358255672,-500.0,0.0003863,30]
[392336439,1761358255682,-500.0,0.0003863,30]
[392336440,1761358255693,-500.0,0.0003863,30]
[392336441,1761358255703,-500.0,0.0003863,30]
[392336442,1761358255712,-500.0,0.0003863,30]
[392336443,1761358255720,-500.0,0.0003863,30]
[392336444,1761358255729,-500.0,0.0003863,30]
[392336445,1761358255738,-521.89,0.0003863,30]
[392336446,1761358255747,-567.83045312,0.0003863,30]
[392336447,1761358255756,-500.0,0.0003863,30]
[392336448,1761358255765,-500.0,0.0003863,2]
[392336449,1761358255774,-555.04,0.0003863,30]
[392336450,1761358255783,-500.0,0.0003863,30]
[392336451,1761358255793,-16197.31,0.0003863,30]
[392336452,1761358255802,-500.0,0.0003863,30]
[392336453,1761358255811,-500.0,0.0003863,30]
[392336454,1761358255819,-500.0,0.0003863,30]
[392336455,1761358255830,-500.0,0.0003863,30]
[392336456,1761358255841,-500.0,0.0003863,30]
[392336457,1761358255850,-500.0,0.0003863,30]
[392336458,1761358255859,-500.0,0.0003863,30]
[392336459,1761358255868,-500.0,0.0003863,30]
[392336460,1761358255878,-892.05,0.0003863,30]
[392336461,1761358255887,-500.0,0.0003863,30]
[392336462,1761358255895,-706.74,0.0003863,30]
[392336463,1761358255907,-500.0,0.0003863,30]
[392336464,1761358255917,-500.0,0.0003863,30]
[392336465,1761358255926,-500.0,0.0003863,30]
[392336466,1761358255936,-639.13181935,0.0003863,30]
[392336467,1761358255945,-500.0,0.0003863,30]
[392336468,1761358255953,-608.66,0.0003863,30]
[392336469,1761358255962,-500.0,0.0003863,2]
[392336470,1761358255973,-500.0,0.0003863,30]
[392336471,1761358255984,-500.0,0.0003863,30]
[392336472,1761358255993,-500.0,0.0003863,30]
[392336473,1761358256002,-500.0,0.0003863,30]
[392336474,1761358256011,-500.0,0.0003863,30]
[392336475,1761358256021,-500.0,0.0003863,30]
[392336476,1761358256031,-500.0,0.0003863,30]
[392336477,1761358256041,-500.0,0.0003863,30]
[392336478,1761358256051,-500.0,0.0003863,30]
[392336479,1761358256061,-2491.40715775,0.00038643,2]
[392336480,1761358256071,-382.07,0.00038652,2]
[392336481,1761358256080,-150.63935512,0.00038673,5]
[392336482,1761358256091,-407.0,0.00038684,7]
[392336483,1761358256100,-300.0,0.00038685,14]
[392336484,1761358256110,-166.66,0.00038689,2]
[392336485,1761358256120,-168.0,0.00038735,2]
[392336486,1761358256129,-4334.12426882,0.00038743,2]
[392336487,1761358256139,-5100.0,0.000388,14]
[392336488,1761358256149,-1000.0,0.000388,7]
[392336489,1761358256159,-379.53622706,0.00038804,2]
[392336490,1761358256169,-216.63993705,0.00038809,2]
[392336491,1761358256179,-407.0,0.00038819,2]
[392336492,1761358256188,-168.0,0.00038837,2]
[392336493,1761358256199,-500.0,0.00038887,2]
[392336494,1761358256208,-5535.23761968,0.00038888,2]
[392336495,1761358256226,-10995.57161052,0.00038888,2]
[392336496,1761358256237,-4048.9864,0.00038888,30]
[392336497,1761358256246,-648.12692688,0.000389,120]
[392336498,1761358256255,-576.87,0.000389,30]
[392336499,1761358256265,-6800.0,0.000389,14]
[392336500,1761358256277,-591.06032213,0.00038903,2]
[392336501,1761358256287,-605.447515,0.00038904,30]
[392336502,1761358256299,-185.681047,0.00038904,30]
[392336503,1761358256310,-961.492603,0.00038904,30]
[392336504,1761358256319,-500.0,0.00038904,30]
[392336505,1761358256328,-500.0,0.00038904,30]
[392336506,1761358256338,-563.13,0.00038904,30]
[392336507,1761358256347,-500.0,0.00038904,30]
[392336508,1761358256357,-583.08,0.00038904,30]
[392336509,1761358256366,-500.0,0.00038904,30]
[392336510,1761358256375,-500.0,0.00038904,30]
[392336511,1761358256384,-500.0,0.00038904,30]
[392336512,1761358256394,-504.60144939,0.00038904,30]
[392336513,1761358256403,-500.0,0.00038904,30]
[392336514,1761358256412,-500.0,0.00038904,30]
[392336515,1761358256421,-500.0,0.00038904,30]
[392336516,1761358256430,-500.0,0.00038904,30]
[392336517,1761358256439,-500.0,0.00038904,30]
[392336518,1761358256448,-500.0,0.00038904,30]
[392336519,1761358256457,-500.0,0.00038904,30]
[392336520,1761358256467,-502.77757573,0.00038904,30]
[392336521,1761358256476,-500.0,0.00038904,30]
[392336522,1761358256485,-500.0,0.00038904,30]
[392336523,1761358256495,-500.0,0.00038904,30]
[392336524,1761358256505,-500.0,0.00038904,30]
[392336525,1761358256514,-500.0,0.00038904,30]
[392336526,1761358256524,-500.0,0.00038904,30]
[392336527,1761358256533,-500.0,0.00038904,30]
[392336528,1761358256543,-500.0,0.00038904,30]
[392336529,1761358256554,-500.0,0.00038904,30]
[392336530,1761358256564,-500.0,0.00038904,30]
[392336531,1761358256574,-268.11649997,0.00038904,30]
[392336532,1761358256584,-500.0,0.00038904,30]
[392336533,1761358256595,-500.0,0.00038904,30]
[392336534,1761358256606,-502.84,0.00038904,30]
[392336535,1761358256615,-740.02,0.00038904,30]
[392336536,1761358256625,-500.0,0.00038904,30]
[392336537,1761358256635,-500.0,0.00038904,30]
[392336538,1761358256645,-500.0,0.00038904,30]
[392336539,1761358256657,-500.0,0.00038904,30]
[392336540,1761358256666,-500.0,0.00038904,30]
[392336541,1761358256677,-500.0,0.00038904,30]
[392336542,1761358256688,-500.0,0.00038904,30]
[392336543,1761358256697,-508.15,0.00038904,30]
[392336544,1761358256707,-500.0,0.00038904,30]
[392336545,1761358256717,-649.87174176,0.00038904,30]
[392336546,1761358256727,-777.48,0.00038904,30]
[392336547,1761358256737,-500.0,0.00038904,30]
[392336548,1761358256746,-500.0,0.00038904,30]
[392336549,1761358256755,-500.0,0.00038904,30]
[392336550,1761358256764,-500.0,0.00038904,30]
[392336551,1761358256774,-500.0,0.00038904,30]
[392336552,1761358256783,-500.0,0.00038904,30]
[392336553,1761358256793,-500.0,0.00038904,30]
[392336554,1761358256803,-500.0,0.00038904,30]
[392336555,1761358256813,-500.0,0.00038904,30]
[392336556,1761358256824,-500.0,0.00038904,30]
[392336557,1761358256841,-500.0,0.00038904,30]
[392336558,1761358256850,-500.0,0.00038904,30]
[392336559,1761358256860,-500.0,0.00038904,30]
[392336560,1761358256869,-500.0,0.00038904,30]
[392336561,1761358256878,-500.0,0.00038904,30]
[392336562,1761358256889,-500.0,0.00038904,30]
[392336563,1761358256899,-500.0,0.00038904,30]
[392336564,1761358256908,-500.0,0.00038904,30]
[392336565,1761358256918,-500.0,0.00038904,30]
[392336566,1761358256928,-500.0,0.00038904,30]
[392336567,1761358256937,-695.89,0.00038904,30]
[392336568,1761358256946,-500.0,0.00038904,30]
[392336569,1761358256956,-583.51409171,0.00038904,30]
[392336570,1761358256965,-187.39215742,0.00038904,30]
[392336571,1761358256975,-500.0,0.00038904,30]
[392336572,1761358256985,-500.0,0.00038904,30]
[392336573,1761358256995,-500.0,0.00038904,30]
[392336574,1761358257004,-500.0,0.00038904,30]
[392336575,1761358257014,-500.0,0.00038904,30]
[392336576,1761358257023,-500.0,0.00038904,30]
[392336577,1761358257033,-610.99,0.00038904,30]
[392336578,1761358257043,-500.0,0.00038904,30]
[392336579,1761358257053,-500.0,0.00038904,30]
[392336580,1761358257063,-500.0,0.00038904,30]
[392336581,1761358257072,-500.0,0.00038904,30]
[392336582,1761358257082,-500.0,0.00038904,30]
[392336583,1761358257092,-500.0,0.00038904,30]
[392336584,1761358257101,-500.0,0.00038904,30]
[392336585,1761358257111,-399.61980871,0.00038904,30]
[392336586,1761358257531,-100.38019129,0.00038904,30]
[392336587,1761358257542,-472.79035934,0.00038904,30]
[392336588,1761358257555,-27.20964066,0.00038904,30]
[392336589,1761358257569,-500.0,0.00038904,30]
[392336590,1761358257579,-292.73183148,0.00038904,30]
[392336591,1761358257819,-631.75579339,0.00037963,2]
[392336592,1761358257833,-500.0,0.00038356,30]
[392336593,1761358257842,-207.26816852,0.00038904,30]
[392336594,1761358257851,-500.0,0.00038904,30]
[392336595,1761358257861,-742.76801941,0.00038904,30]
[392336596,1761358502966,190.15447425,0.00036709,120]
[392336597,1761358532510,7080.01912296,0.00036709,30]
[392336599,1761358612511,238.06280621,0.00036709,30]
[392336612,1761358715261,3637.20004007,0.00036711,30]
[392336614,1761359107657,6210.2984662,0.00015,2]
[392336615,1761359107681,6210.2984662,0.00015,2]
[392336616,1761359107733,6210.2984662,0.00015,2]
[392336617,1761359107757,6210.2984662,0.00015,2]
[392336618,1761359107781,6210.2984662,0.00015,2]
[392336619,1761359107806,6210.2984662,0.00015,2]
[392336620,1761359107831,6210.2984662,0.00015,2]
[392336621,1761359107854,1235.73679078,0.00015,2]
[392336622,1761359113831,33639.1347525,0.00036712,30]
[392336624,1761359127743,92931.72975745,0.00036712,30]
[392336627,1761359167459,187.03075929,0.00036712,120]
[392336634,1761359190657,154.6,0.00013699,2]
[392336638,1761359217362,15795.84706583,0.000162,5]
[392336639,1761359217386,2773.07397955,0.000162,5]
[392336640,1761359258443,-272.38477995,0.00016,2]
[392336644,1761359276852,4819.96167542,0.00015,2]
[392336645,1761359276875,6210.2984662,0.00015,2]
[392336646,1761359276896,6210.2984662,0.00015,2]
[392336647,1761359276922,100000.0,0.00015,2]
[392336648,1761359276948,227320.74285804,0.00015,2]
[392336649,1761359278724,-16.56736903,0.00016,2]
[392336650,1761359278745,-360.74655397,0.00018,2]
[392336651,1761359283706,-290.48725263,0.00018,2]
[392336652,1761359285785,-415.48092119,0.00018,2]
[392336656,1761359303998,-158.84141481,0.00018,2]
[392336658,1761359307885,2405.75151627,0.00036708,30]
[392336668,1761359350742,487.62733274,0.00012893,2]
[392336693,1761359431549,-365.82580333,0.00018,2]
[392336695,1761359431560,-8264.80345583,0.00018,2]
[392336697,1761359431571,-372.80818928,0.00018,2]
[392336699,1761359431582,-1219.05545319,0.00018,2]
[392336701,1761359431593,-405.97569197,0.00018,2]
[392336703,1761359431604,-759.77047353,0.00018,2]
[392336705,1761359431615,-840.82494719,0.00018,2]
[392336706,1761359431626,-506.58,0.00018,2]
[392336707,1761359431660,-2150.13,0.00018,2]
[392336708,1761359431672,-2303.61203129,0.00018,2]
[392336709,1761359431683,-1618.9,0.00018,2]
[392336710,1761359431694,-1367.74106718,0.00018,2]
[392336711,1761359431767,-1603.77847889,0.00018,2]
[392336712,1761359431778,-8322.6072621,0.00018,2]
[392336713,1761359431788,-30.08469486,0.00018,2]
[392336714,1761359431799,-174.69234925,0.00018,2]
[392336715,1761359431808,-1760.37144822,0.000181,2]
[392336716,1761359431817,-154.6,0.00023973,2]
[392336717,1761359431827,-177.52,0.00030307,2]
[392336718,1761359431837,-162.06981313,0.00030841,2]
[392336719,1761359431846,-153.0,0.00032877,30]
[392336720,1761359431860,-154.6,0.00034247,2]
[392336721,1761359431870,-162.06981313,0.00034696,2]
[392336722,1761359431880,-166.0,0.00035,30]
[392336724,1761359431891,-1000.0,0.00035342,2]
[392336726,1761359431901,-150.0,0.00035548,2]
[392336728,1761359431910,-204.77704411,0.00035608,2]
[392336730,1761359431920,-1000.0,0.00035616,2]
[392336732,1761359431929,-299.99,0.00035616,30]
[392336734,1761359431939,-2113.51,0.00035616,2]
[392336736,1761359431949,-4241.92947149,0.00035616,2]
[392336739,1761359431960,-344.81,0.00035616,2]
[392336741,1761359431978,-5413.25052851,0.00035616,2]
[392336743,1761359431990,-150.99,0.00035616,2]
[392336745,1761359432001,-9999.99,0.00035616,2]
[392336747,1761359432010,-2268.54,0.00035709,2]
[392336749,1761359432019,-205.0,0.00035786,7]
[392336750,1761359432029,-1000.0,0.0003589,2]
[392336751,1761359432039,-496.03,0.00036075,120]
[392336752,1761359432048,-168.0,0.00036105,2]
[392336753,1761359432058,-205.0,0.0003616,2]
[392336754,1761359432067,-1000.0,0.00036164,2]
[392336755,1761359432077,-205.0,0.00036335,2]
[392336758,1761359432091,-1000.0,0.00036438,2]
[392336760,1761359432102,-206.0,0.00036506,2]
[392336761,1761359432112,-205.0,0.00036545,120]
[392336762,1761359432122,-168.0,0.00036632,2]
[392336763,1761359432134,-478.018,0.00036632,45]
[392336764,1761359432144,-489.43566501,0.00036708,2]
[392336765,1761359432154,-2492.85638183,0.00036708,2]
[392336766,1761359432164,-1880.63567887,0.00036708,2]
[392336767,1761359432174,-3800.24975797,0.00036708,7]
[392336768,1761359432183,-88563.23894534,0.00036708,2]
[392336769,1761359432196,-11961.1122866,0.00036708,2]
[392336770,1761359432207,-185.3238947,0.00036708,14]
[392336771,1761359432217,-693.45672806,0.00036712,2]
[392336772,1761359432227,-300.0,0.00036714,2]
[392336773,1761359432237,-16784.28959315,0.0003675,2]
[392336774,1761359432247,-206.0,0.00036753,120]
[392336775,1761359432257,-1733.6497076,0.00036821,2]
[392336776,1761359432267,-151.0,0.0003684,2]
[392336777,1761359432276,-151.0,0.0003684,2]
[392336778,1761359432290,-151.0,0.0003684,2]
[392336779,1761359432300,-151.0,0.0003684,2]
[392336780,1761359432310,-151.0,0.0003684,2]
[392336781,1761359432320,-151.0,0.0003684,2]
[392336782,1761359432330,-151.0,0.0003684,2]
[392336783,1761359432340,-289.03632903,0.0003684,2]
[392336784,1761359432350,-151.0,0.0003684,2]
[392336785,1761359432362,-151.0,0.0003684,2]
[392336786,1761359432372,-151.0,0.0003684,2]
[392336787,1761359432383,-151.0,0.0003684,2]
[392336788,1761359432399,-151.0,0.0003684,2]
[392336789,1761359432408,-151.0,0.0003684,2]
[392336790,1761359432419,-151.0,0.0003684,2]
[392336791,1761359432428,-151.0,0.0003684,2]
[392336792,1761359432438,-151.0,0.0003684,2]
[392336793,1761359432447,-151.0,0.0003684,2]
[392336794,1761359432457,-151.0,0.0003684,2]
[392336795,1761359432467,-151.0,0.0003684,2]
[392336796,1761359432477,-151.0,0.0003684,2]
[392336797,1761359432487,-151.0,0.0003684,2]
[392336798,1761359432496,-151.0,0.0003684,2]
[392336799,1761359432509,-151.0,0.0003684,2]
[392336800,1761359432519,-151.0,0.0003684,2]
[392336801,1761359432528,-151.0,0.0003684,2]
[392336802,1761359432538,-151.0,0.0003684,2]
[392336803,1761359432547,-151.0,0.0003684,2]
[392336804,1761359432557,-151.0,0.0003684,2]
[392336805,1761359432566,-151.0,0.0003684,2]
[392336806,1761359432576,-151.0,0.0003684,2]
[392336807,1761359432585,-151.0,0.0003684,2]
[392336808,1761359432595,-151.0,0.0003684,2]
[392336809,1761359432605,-151.0,0.0003684,2]
[392336810,1761359432615,-158.57735601,0.0003684,2]
[392336811,1761359432624,-151.0,0.00036859,14]
[392336812,1761359432634,-606.0,0.00036862,2]
[392336813,1761359432643,-1592.0,0.00036862,2]
[392336814,1761359432657,-1312.0,0.00036862,2]
[392336815,1761359432666,-818.0,0.00036862,2]
[392336816,1761359432675,-1270.0,0.00036862,2]
[392336817,1761359432686,-1185.0,0.00036862,2]
[392336818,1761359432696,-903.0,0.00036862,2]
[392336819,1761359432706,-3488.0,0.00036862,2]
[392336820,1761359432715,-2054.0,0.00036862,2]
[392336821,1761359432725,-819.0,0.00036862,2]
[392336822,1761359432735,-711.69358984,0.00036921,2]
[392336823,1761359432745,-1852.42,0.00036988,2]
[392336824,1761359432757,-295.72,0.00037,2]
[392336825,1761359432767,-167.62422574,0.000372,120]
[392336826,1761359432778,-800.0,0.0003726,7]
[392336827,1761359432788,-500.0,0.0003726,7]
[392336828,1761359432799,-500.0,0.0003726,7]
[392336829,1761359432809,-1000.0,0.000373,2]
[392336830,1761359432819,-304.68531054,0.00037317,2]
[392336831,1761359432829,-166.0,0.00037351,2]
[392336832,1761359432839,-250.0,0.00037364,2]
[392336833,1761359432853,-1733.64970752,0.00037376,2]
[392336834,1761359432863,-19584.58515601,0.0003739,14]
[392336835,1761359432873,-181.96,0.0003742,2]
[392336836,1761359432883,-54730.2057735,0.0003743,2]
[392336837,1761359432893,-205.0,0.00037484,2]
[392336838,1761359432902,-300.0,0.00037546,7]
[392336839,1761359432912,-200.0,0.0003755,2]
[392336840,1761359432922,-206.0,0.00037582,7]
[392336841,1761359432931,-666.0,0.00037621,3]
[392336842,1761359432941,-202.50535163,0.00037789,2]
[392336843,1761359432951,-2500.0,0.000378,2]
[392336844,1761359432961,-192.76,0.00037821,2]
[392336845,1761359432970,-161.6380696,0.00037831,15]
[392336846,1761359432980,-1523.57246929,0.00037831,2]
[392336847,1761359432989,-473.81684506,0.00037831,2]
[392336848,1761359433000,-500.0,0.00037873,5]
[392336849,1761359433010,-500.0,0.00037873,5]
[392336850,1761359433020,-27516.3029132,0.0003789,3]
[392336851,1761359433029,-181.96,0.0003789,2]
[392336852,1761359433039,-200.0,0.00037892,10]
[392336853,1761359433048,-151.0,0.00037897,14]
[392336854,1761359433057,-500.0,0.00037899,2]
[392336855,1761359433067,-250000.0,0.000379,2]
[392336856,1761359433077,-1733.64970752,0.00037931,2]
[392336857,1761359433086,-7849.9227466,0.00037977,2]
[392336863,1761359437524,-6541.0,0.00036862,2]
[392336864,1761359437533,-2138.93775452,0.00037977,2]
[392336865,1761359437579,-1374.5491995,0.00037977,2]
[392336866,1761359437591,-8878.10082393,0.00037977,2]
[392336867,1761359437635,-804.70728964,0.00037977,2]
[392336868,1761359437692,-2548.26467723,0.00037977,2]
[392336869,1761359437703,-2037.96458194,0.00037977,2]
[392336870,1761359437748,-471.87366345,0.00037977,2]